fUST/lending_fUST_20260119
["ID","MTS","AMOUNT","RATE_DAILY","PERIOD"]
[402707895,1768811432471,-396.75207716,0.00010175,2]
[402707897,1768811432481,-500.0,0.00010175,2]
[402707900,1768811432500,-500.0,0.00010175,2]
[402707902,1768811432509,-500.0,0.00010175,2]
[402707904,1768811432519,-500.0,0.00010175,2]
[402707906,1768811432529,-500.0,0.00010175,2]
[402707908,1768811432539,-132.25879565,0.00010175,2]
[402707910,1768811432551,-367.74120435,0.00010175,2]
[402707912,1768811432562,-500.0,0.00010175,2]
[402707914,1768811432571,-500.0,0.00010175,2]
[402707916,1768811432581,-500.0,0.00010175,2]
[402707918,1768811432591,-500.0,0.00010175,2]
[402707920,1768811432600,-500.0,0.00010175,2]
[402707922,1768811432609,-500.0,0.00010175,2]
[402707924,1768811432618,-500.0,0.00010175,2]
[402707926,1768811432628,-500.0,0.00010175,2]
[402707928,1768811432637,-500.0,0.00010175,2]
[402707930,1768811432646,-500.0,0.00010175,2]
[402707932,1768811432656,-500.0,0.00010175,2]
[402707934,1768811432665,-500.0,0.00010175,2]
[402707936,1768811432675,-500.0,0.00010175,2]
[402707938,1768811432684,-500.0,0.00010175,2]
[402707940,1768811432694,-326.45621534,0.00010175,2]
[402707942,1768811432703,-500.0,0.00010175,2]
[402707944,1768811432713,-500.0,0.00010175,2]
[402707946,1768811432723,-500.0,0.00010175,2]
[402707948,1768811432732,-500.0,0.00010557,2]
[402707950,1768811432741,-235.17034025,0.00010557,2]
[402707952,1768811432751,-555.70880166,0.00010557,2]
[402707954,1768811432761,-10000.0,0.00010558,2]
[402707956,1768811432770,-463.0053307,0.00010607,2]
[402707958,1768811432786,-420.0,0.00011189,2]
[402707960,1768811432795,-349.66776765,0.00012024,2]
[402707962,1768811432804,-587.0,0.00012306,2]
[402707964,1768811432814,-384.0223967,0.00012329,2]
[402707966,1768811432823,-378.0244005,0.00012329,2]
[402707968,1768811432832,-249.81,0.00012329,2]
[402707970,1768811432841,-208.17,0.00012329,2]
[402707971,1768811432851,-173.48,0.00012329,2]
[402707973,1768811432861,-867.42,0.00012329,2]
[402707975,1768811432872,-534.1028375,0.00012329,2]
[402707977,1768811432882,-464.95760834,0.00012363,2]
[402707979,1768811432892,-151.0,0.000124,2]
[402707982,1768811432902,-378.0244005,0.000124,2]
[402707984,1768811432911,-378.0244005,0.00012741,2]
[402707986,1768811432922,-49773.291901,0.00012785,2]
[402707988,1768811432931,-14145.3744325,0.00012785,2]
[402707990,1768811432942,-2557.7868668,0.00012785,2]
[402707992,1768811432951,-157.58259481,0.00012876,2]
[402707994,1768811432960,-4401.44384697,0.000129,2]
[402707995,1768811432970,-151.0,0.00013,2]
[402707998,1768811432980,-445.202766,0.00013011,2]
[402708000,1768811432990,-299.74612378,0.00013011,2]
[402708002,1768811433000,-2150.738,0.00013011,2]
[402708003,1768811433009,-3284.41045872,0.00013014,2]
[402708005,1768811433019,-151.0,0.000132,2]
[402708007,1768811433028,-4401.44384691,0.00013229,2]
[402708009,1768811433038,-508.54591237,0.00013273,2]
[402708011,1768811433048,-333.60184896,0.00013273,2]
[402708013,1768811433057,-371.28937045,0.00013273,2]
[402708016,1768811433067,-161.14886831,0.00013273,2]
[402708017,1768811433077,-158.02761681,0.00013273,2]
[402708020,1768811433087,-500.0,0.00013273,2]
[402708022,1768811433097,-500.0,0.00013273,2]
[402708024,1768811433107,-500.0,0.00013273,2]
[402708026,1768811433116,-375.0,0.00013534,2]
[402708028,1768811433126,-461.67526834,0.00013559,2]
[402708029,1768811433135,-2230.315306,0.00013559,2]
[402708031,1768811433144,-529.69418364,0.00013698,2]
[402708033,1768811433154,-500.0,0.00013699,2]
[402708035,1768811433165,-402.91907789,0.00013699,2]
[402708038,1768811433175,-258.24513048,0.00013699,2]
[402708040,1768811433184,-158.02761681,0.00013699,2]
[402708042,1768811433194,-156.02726707,0.00013699,2]
[402708044,1768811433203,-158.02761666,0.00013699,2]
[402708046,1768811433213,-270.02986968,0.00013699,2]
[402708048,1768811433222,-500.0,0.00013699,2]
[402708050,1768811433233,-500.0,0.00013699,2]
[402708051,1768811433242,-1000.0,0.00013821,2]
[402708053,1768811433252,-1000.0,0.00013821,2]
[402708055,1768811433262,-1000.0,0.00013821,2]
[402708057,1768811433273,-151.0,0.000139,2]
[402708059,1768811433282,-403.00691864,0.00014024,2]
[402708061,1768811433291,-4012.88317901,0.00014081,2]
[402708063,1768811433300,-159.75188332,0.00014103,2]
[402708065,1768811433310,-376.85227543,0.00014107,2]
[402708067,1768811433320,-1820.54239338,0.00014107,2]
[402708069,1768811433329,-329.92776227,0.00014247,2]
[402708071,1768811433339,-1000.0,0.00014247,2]
[402708073,1768811433348,-1000.0,0.00014247,2]
[402708075,1768811433359,-1500.0,0.00014368,2]
[402708077,1768811433368,-1500.0,0.00014368,2]
[402708079,1768811433377,-214.47494846,0.00014368,2]
[402708081,1768811433390,-1285.52505154,0.00014368,2]
[402708083,1768811433400,-276.48728749,0.00014411,2]
[402708085,1768811433409,-339.6184142,0.00014521,2]
[402708087,1768811433419,-151.0,0.000147,2]
[402708089,1768811433428,-153.0,0.0001474,2]
[402708091,1768811433438,-153.0,0.0001474,2]
[402708093,1768811433447,-153.0,0.0001474,2]
[402708095,1768811433457,-153.0,0.0001474,2]
[402708097,1768811433467,-153.0,0.0001474,2]
[402708099,1768811433476,-153.0,0.0001474,2]
[402708101,1768811433487,-524.27009871,0.00014744,2]
[402708103,1768811433500,-50.59790129,0.00014744,2]
[402708105,1768811433509,-464.47,0.00014744,2]
[402708107,1768811433519,-199.512,0.00014744,2]
[402708109,1768811433530,-417.0,0.00014744,2]
[402708111,1768811433539,-1087.98821416,0.00014795,2]
[402708150,1768811438983,-10245.87544665,0.00010175,2]
[402708151,1768811438993,-412.01178584,0.00014795,2]
[402708152,1768811439003,-1500.0,0.00014795,2]
[402708153,1768811439013,-160.0,0.00014838,2]
[402708154,1768811439023,-153.0,0.00014849,2]
[402708155,1768811439033,-153.0,0.00014849,2]
[402708156,1768811439042,-2000.0,0.00014916,2]
[402708157,1768811439052,-2000.0,0.00014916,2]
[402708158,1768811439062,-2000.0,0.00014916,2]
[402708159,1768811439072,-168.0,0.00014956,2]
[402708160,1768811439082,-2260.32477162,0.00015,2]
[402708161,1768811439093,-3876.0,0.00015063,2]
[402708162,1768811439102,-249.157387,0.00015068,2]
[402708163,1768811439111,-11105.9225929,0.00015152,2]
[402708164,1768811439120,-3156.2596624,0.00015152,2]
[402708165,1768811439129,-160.0,0.00015161,2]
[402708166,1768811439138,-1041.66666667,0.00015169,2]
[402708167,1768811439147,-638.36852575,0.00015202,2]
[402708168,1768811439156,-2000.0,0.00015342,2]
[402708169,1768811439165,-2000.0,0.00015342,2]
[402708170,1768811439174,-1104.8432008,0.00015393,2]
[402708171,1768811439184,-151.0,0.000154,2]
[402708172,1768811439193,-2500.0,0.00015464,2]
[402708173,1768811439202,-2500.0,0.00015464,2]
[402708174,1768811439211,-1262.21303633,0.00015464,2]
[402708175,1768811439224,-1237.78696367,0.00015464,2]
[402708176,1768811439233,-378.0244005,0.00015507,2]
[402708177,1768811439243,-378.0244005,0.00015507,2]
[402708178,1768811439253,-153.0,0.00015562,2]
[402708179,1768811439262,-194.3964825,0.00015616,2]
[402708180,1768811439272,-360.6204137,0.00015616,2]
[402708181,1768811439281,-153.0,0.00015616,2]
[402708182,1768811439290,-153.0,0.00015616,2]
[402708183,1768811439299,-153.0,0.00015616,2]
[402708184,1768811439308,-153.0,0.00015616,2]
[402708185,1768811439316,-358.6929344,0.00015671,2]
[402708186,1768811439325,-194.3964825,0.00015671,2]
[402708187,1768811439334,-2478.0662867,0.0001568,2]
[402708188,1768811439343,-84.48817253,0.0001568,2]
[402708189,1768811439355,-619.76855137,0.0001568,2]
[402708190,1768811439364,-3875.0,0.0001572,2]
[402708191,1768811439374,-610.2977654,0.00015754,2]
[402708192,1768811439383,-181.119152,0.00015868,2]
[402708193,1768811439392,-151.0,0.0001589,2]
[402708194,1768811439402,-151.0,0.0001589,2]
[402708195,1768811439411,-586.21937261,0.0001589,2]
[402708196,1768811439422,-1913.78062739,0.0001589,2]
[402708197,1768811439432,-423.34355094,0.0001589,2]
[402708198,1768811439441,-158.0,0.000159,2]
[402708199,1768811439451,-3283.95445077,0.00015998,2]
[402708200,1768811439462,-370.29455872,0.00015998,2]
[402708201,1768811439473,-705.88366668,0.00015998,2]
[402708202,1768811439485,-1644.213928,0.00016,2]
[402708203,1768811439497,-723.20545646,0.00016001,2]
[402708265,1768811441040,223.0,0.0001,9]
[402708269,1768811441067,1000.0,0.0001,9]
[402708273,1768811441092,1000.0,0.0001,9]
[402708276,1768811441116,1000.0,0.0001,9]
[402708317,1768811446664,-1289.95793183,0.0001,9]
[402708318,1768811446674,-3678.23839045,0.00016001,2]
[402708319,1768811446683,-3000.0,0.00016012,2]
[402708320,1768811446693,-195.59067384,0.00016012,2]
[402708321,1768811446702,-3000.0,0.00016012,2]
[402708322,1768811446712,-3876.0,0.00016023,2]
[402708323,1768811446722,-456.34606964,0.00016024,2]
[402708324,1768811446732,-729.0,0.0001604,2]
[402708325,1768811446741,-2405.97669952,0.0001604,2]
[402708326,1768811446781,-1470.02330048,0.0001604,2]
[402708327,1768811446792,-153.0,0.00016164,2]
[402708328,1768811446802,-153.0,0.00016164,2]
[402708329,1768811446812,-154.7582759,0.00016164,2]
[402708330,1768811446822,-153.0,0.00016164,2]
[402708331,1768811446833,-168.0,0.00016166,2]
[402708332,1768811446846,-151.0,0.000162,2]
[402708333,1768811446856,-157.58259481,0.00016388,2]
[402708334,1768811446866,-3876.0,0.0001641,2]
[402708335,1768811446876,-500.0,0.00016438,2]
[402708336,1768811446887,-500.0,0.00016438,2]
[402708337,1768811446896,-500.0,0.00016438,2]
[402708338,1768811446905,-358.80560614,0.00016438,2]
[402708339,1768811446914,-151.0,0.00016438,2]
[402708340,1768811446923,-151.0,0.00016438,2]
[402708341,1768811446933,-3000.0,0.00016438,2]
[402708342,1768811446943,-153.0,0.00016438,2]
[402708343,1768811446952,-153.0,0.00016438,2]
[402708344,1768811446960,-153.0,0.00016438,2]
[402708345,1768811446970,-729.0,0.00016445,2]
[402708346,1768811446979,-378.0244005,0.00016466,2]
[402708347,1768811446989,-400.7635361,0.00016466,2]
[402708348,1768811447000,-378.0244005,0.00016466,2]
[402708349,1768811447010,-271.56641368,0.00016466,2]
[402708351,1768811614539,175.0,0.00027397,120]
[402708353,1768811638067,175.0,0.00027397,120]
[402708354,1768811659824,175.0,0.00027397,120]
[402708355,1768811683885,175.0,0.00027397,120]
[402708356,1768811699525,175.0,0.00027397,120]
[402708357,1768811722948,842.76,0.00027397,120]
[402708358,1768811728763,2031.98,0.00027397,120]
[402708361,1768812051318,678.00253043,0.0002,120]
[402708364,1768812308937,207.0,0.0002545,120]
[402708365,1768812310295,207.0,0.00026723,120]
[402708389,1768812638634,-949.76914845,0.0001199,2]
[402708390,1768812638644,-589.0,0.0001199,2]
[402708391,1768812638655,-266.2216292,0.00012111,2]
[402708392,1768812638666,-165.67917531,0.00013273,2]
[402708393,1768812638676,-513.08313647,0.00013273,2]
[402708394,1768812638687,-500.0,0.00013273,2]
[402708395,1768812638698,-500.0,0.00013273,2]
[402708396,1768812638708,-972.07634424,0.0001355,2]
[402708397,1768812638717,-1095.175849,0.00013699,2]
[402708398,1768812638728,-1000.0,0.00013699,2]
[402708399,1768812638739,-500.0,0.00013699,2]
[402708400,1768812638748,-1000.0,0.00013821,2]
[402708401,1768812638758,-481.77926784,0.00013821,2]
[402708402,1768812638768,-314.14152245,0.00014111,2]
[402708403,1768812638778,-1000.0,0.00014247,2]
[402708404,1768812638788,-710.88541207,0.00014368,2]
[402708405,1768812638803,-157.58259481,0.000146,2]
[402708406,1768812638812,-3022.68441033,0.000146,2]
[402708407,1768812638822,-2230.315306,0.00014637,2]
[402708408,1768812638832,-500.0,0.00014646,2]
[402708409,1768812638843,-502.50519133,0.00014646,2]
[402708410,1768812638853,-500.0,0.00014646,2]
[402708411,1768812638863,-500.0,0.00014646,2]
[402708412,1768812638875,-500.0,0.00014646,2]
[402708413,1768812638886,-500.0,0.00014646,2]
[402708414,1768812638895,-258.49513504,0.00014646,2]
[402708415,1768812638905,-461.67526834,0.00014686,2]
[402708416,1768812638915,-514.61923818,0.00014694,2]
[402708417,1768812638926,-388.99616116,0.00014694,2]
[402708418,1768812638936,-200.0,0.00014694,2]
[402708419,1768812638946,-166.92,0.00014694,2]
[402708420,1768812638955,-234.01413472,0.00014694,2]
[402708421,1768812638965,-597277.47678328,0.00014695,2]
[402708671,1768812643642,-1846.28983336,0.00014695,2]
[402708711,1768813019844,2119.0,0.00027397,120]
[402708712,1768813049661,-1184.71121921,0.00013292,2]
[402708713,1768813049676,-3815.28878079,0.00013292,2]
[402708714,1768813049687,-1184.71121921,0.00013426,2]
[402708716,1768813075069,1032.1078468,0.00027,120]
[402708717,1768813363916,155.99,0.00027397,120]
[402708759,1768813831797,-4083.85106684,0.00012265,2]
[402708761,1768813831806,-811.58690884,0.00012389,2]
[402708763,1768813831816,-595.0,0.00012389,2]
[402708765,1768813831825,-262.29537928,0.00012452,2]
[402708767,1768813831835,-162.22,0.00013193,2]
[402708769,1768813831844,-158.02762201,0.00013699,2]
[402708771,1768813831853,-158.22765676,0.00013699,2]
[402708773,1768813831863,-500.0,0.00013699,2]
[402708775,1768813831873,-194.66,0.00014072,2]
[402708777,1768813831882,-300.0,0.00014099,2]
[402708779,1768813831892,-613.6874177,0.000141,2]
[402708781,1768813831901,-305.1488827,0.000141,2]
[402708783,1768813831911,-1000.0,0.00014247,2]
[402708785,1768813831920,-609.9739064,0.00014378,2]
[402708788,1768813831930,-309.50854755,0.00014452,2]
[402708790,1768813831951,-360.23346673,0.00014492,2]
[402708792,1768813831961,-272.29731281,0.00014492,2]
[402708795,1768813831972,-4403.84234183,0.00014493,2]
[402708879,1768813837891,-500.0,0.0001449,2]
[402708882,1768813837900,-500.0,0.0001449,2]
[402708884,1768813837910,-500.0,0.0001449,2]
[402708885,1768813837919,-500.0,0.0001449,2]
[402708886,1768813837928,-471.39689182,0.0001449,2]
[402708887,1768813837937,-500.0,0.0001449,2]
[402708888,1768813837947,-587.71883856,0.0001449,2]
[402708889,1768813837956,-500.0,0.0001449,2]
[402708890,1768813837965,-300.0,0.0001449,2]
[402708891,1768813837975,-2003.33786573,0.00014493,2]
[402709058,1768813842759,-811.58690881,0.00014493,2]
[402709078,1768813845802,-1437.79,0.00014493,2]
[402709083,1768813981854,168.31,0.00027297,120]
[402709084,1768814023466,601.60268524,0.0002729,120]
[402709086,1768814073816,500.0,0.00027397,120]
[402709093,1768814386943,640.77,0.00027397,120]
[402709116,1768814659820,552.0,0.00027397,120]
[402709117,1768814716042,2669.87827957,0.00014,30]
[402709122,1768814782257,-364.0,0.00010974,2]
[402709130,1768814957411,1824.83455132,0.00027397,120]
[402709132,1768814960384,200.0,0.00027,120]
[402709133,1768814978798,446.0,0.000272,120]
[402709135,1768815030996,-4636.0,0.00010541,2]
[402709153,1768815031875,-5000.0,0.00010647,2]
[402709154,1768815031887,-268.02399926,0.00010701,2]
[402709155,1768815031897,-571.0,0.00010755,2]
[402709156,1768815031906,-300.0,0.00011081,2]
[402709157,1768815031916,-167.41,0.0001131,2]
[402709158,1768815031926,-31050.2211363,0.0001137,2]
[402709159,1768815031936,-195.31,0.00012017,2]
[402709160,1768815031945,-420.0,0.00012176,2]
[402709161,1768815031955,-4081.276847,0.00012691,2]
[402709164,1768815031965,-316.26831912,0.00012701,2]
[402709165,1768815031974,-223.21,0.00012724,2]
[402709167,1768815031984,-2644.8488591,0.000129,2]
[402709169,1768815031994,-500.0,0.00013273,2]
[402709171,1768815032003,-587.0,0.00013379,2]
[402709173,1768815032013,-251.12,0.00013431,2]
[402709174,1768815032022,-602.7690368,0.00013452,2]
[402709177,1768815032032,-302.3095124,0.00013478,2]
[402709178,1768815032042,-602.7690368,0.00013478,2]
[402709179,1768815032052,-484.4823873,0.00013682,2]
[402709180,1768815032062,-500.0,0.00013698,2]
[402709181,1768815032072,-500.0,0.00013698,2]
[402709182,1768815032081,-500.0,0.00013698,2]
[402709183,1768815032091,-181.65393726,0.00013698,2]
[402709184,1768815032293,-500.0,0.00013698,2]
[402709185,1768815032304,-500.0,0.00013698,2]
[402709186,1768815032314,-500.0,0.00013698,2]
[402709187,1768815032324,-500.0,0.00013698,2]
[402709188,1768815032333,-500.0,0.00013698,2]
[402709189,1768815032343,-500.0,0.00013698,2]
[402709190,1768815032351,-310.71744619,0.00013698,2]
[402709191,1768815032361,-500.0,0.00013698,2]
[402709192,1768815032370,-500.0,0.00013698,2]
[402709193,1768815032380,-500.0,0.00013698,2]
[402709194,1768815032389,-396.01219293,0.00013698,2]
[402709195,1768815032400,-500.0,0.00013698,2]
[402709196,1768815032410,-500.0,0.00013698,2]
[402709197,1768815032419,-500.0,0.00013698,2]
[402709198,1768815032428,-500.0,0.00013698,2]
[402709199,1768815032438,-477.07859913,0.00013698,2]
[402709200,1768815032447,-500.0,0.00013698,2]
[402709201,1768815032458,-500.0,0.00013698,2]
[402709202,1768815032467,-500.0,0.00013698,2]
[402709203,1768815032477,-248.95271046,0.00013698,2]
[402709204,1768815032490,-251.04728954,0.00013698,2]
[402709205,1768815032499,-207.19027104,0.00013698,2]
[402709206,1768815032510,-292.80972896,0.00013698,2]
[402709207,1768815032520,-500.0,0.00013698,2]
[402709208,1768815032530,-61.27866707,0.00013698,2]
[402709210,1768815035401,728.01,0.00010541,2]
[402709211,1768815035425,4271.99,0.00010541,2]
[402709224,1768815037960,-24818.06837786,0.00012701,2]
[402709444,1768815046064,-604.7181712,0.00012701,2]
[402709445,1768815046118,-737.6736429,0.00012701,2]
[402709455,1768815626281,2612.7318825,0.00027397,120]
[402709457,1768815822153,206.96086788,0.00023106,120]
[402709458,1768815871654,-207.63,9.863e-05,2]
[402709459,1768815940996,252.58752847,0.00022444,120]
[402709460,1768815941080,232.47936795,0.00022444,120]
[402709461,1768815941786,202.34,7.212e-05,2]
[402709462,1768815942182,303.52,7.813e-05,2]
[402709463,1768815942608,404.69,8.414e-05,2]
[402709464,1768815943034,505.86,9.015e-05,2]
[402709465,1768815943429,607.03,9.616e-05,2]
[402709466,1768815950869,-708.2,0.00010217,2]
[402709467,1768816106217,-5000.0,0.00010333,2]
[402709475,1768816139659,-5000.0,0.00010333,2]
[402709476,1768816146466,0.01,0.00010333,2]
[402709477,1768816149147,-4999.99,0.00010333,2]
[402709478,1768816185860,-5000.0,0.00010333,2]
[402709479,1768816205085,-5000.0,0.00010333,2]
[402709482,1768816223505,-5000.0,0.0001023,2]
[402709511,1768816232004,-614.35401849,0.00010333,2]
[402709684,1768816238200,-4385.64598151,0.00010333,2]
[402709686,1768816238210,-300.0,0.00010532,2]
[402709688,1768816238220,-256.33815289,0.00010698,2]
[402709690,1768816238231,-420.0,0.00011579,2]
[402709691,1768816238241,-500.0,0.00011769,2]
[402709692,1768816238251,-155.11246588,0.00011769,2]
[402709693,1768816238261,-330.78651102,0.00011769,2]
[402709694,1768816238271,-289.19474265,0.00011769,2]
[402709695,1768816238281,-500.0,0.00011769,2]
[402709696,1768816238291,-500.0,0.00011769,2]
[402709697,1768816238300,-500.0,0.00011769,2]
[402709698,1768816238310,-3131.65129544,0.00011769,2]
[402709699,1768816238319,-321.57908414,0.0001177,2]
[402709700,1768816238330,-1286.31633657,0.0001177,2]
[402709701,1768816238339,-2894.21175727,0.0001177,2]
[402709702,1768816238348,-5145.26534626,0.0001177,2]
[402709703,1768816238358,-8039.47710353,0.0001177,2]
[402709704,1768816238369,-699.92730203,0.0001177,2]
[402709705,1768816238379,-2799.70920813,0.0001177,2]
[402709706,1768816238388,-6293.04637256,0.0001177,2]
[402709707,1768816238398,-890.3572995,0.00011902,2]
[402709708,1768816238408,-416.32348064,0.00012,2]
[402709709,1768816238418,-252.16342671,0.00012351,2]
[402709710,1768816238428,-190.60811897,0.00012351,2]
[402709711,1768816238437,-5003.5775159,0.00012352,2]
[402709712,1768816238447,-9832.678531,0.00012352,2]
[402709713,1768816238456,-602.7690368,0.0001263,2]
[402709714,1768816238464,-1020.3677622,0.00012678,2]
[402709715,1768816238474,-302.47902041,0.00012698,2]
[402709716,1768816238483,-151.0,0.000127,2]
[402709717,1768816238493,-151.0,0.000127,2]
[402709718,1768816238503,-151.0,0.000128,2]
[402709719,1768816238512,-151.0,0.000128,2]
[402709720,1768816238523,-400.92755009,0.00012875,2]
[402709721,1768816238533,-151.0,0.000129,2]
[402709722,1768816238542,-2314.24275166,0.000129,2]
[402709723,1768816238552,-89291.9020575,0.00012942,2]
[402709735,1768816240448,-6974.625,0.00012942,2]
[402709738,1768816242012,160.6,9.706e-05,2]
[402709788,1768816319017,323.16,9.454e-05,2]
[402709817,1768816398860,324.0,8.903e-05,2]
[402709818,1768816399267,647.99,9.712e-05,2]
[402709847,1768816464483,-5000.0,0.00010203,2]
[402709851,1768816471555,0.01,0.00010203,2]
[402709852,1768816471579,4999.99,0.00010203,2]
[402709859,1768816486580,385.95,9.454e-05,2]
[402709927,1768816534145,500.0,0.00027,120]
[402709947,1768816547883,1000.0,0.00027,120]
[402709951,1768816555794,500.39411981,0.00027,120]
[402709958,1768816566338,381.04,8.916e-05,2]
[402709959,1768816566752,762.08,9.726e-05,2]
[402709983,1768816639321,-5000.0,0.00010101,2]
[402709992,1768816650330,0.01,0.00010101,2]
[402709993,1768816650357,4999.99,0.00010101,2]
[402709995,1768816656101,385.23,8.901e-05,2]
[402709996,1768816656496,770.47,9.71e-05,2]
[402710012,1768816686845,-5000.0,0.00010101,2]
[402710013,1768816692678,-5000.0,0.0001,2]
[402710014,1768816699187,-5000.0,0.0001015,2]
[402710015,1768816732202,167.0,7.5e-07,2]
[402710017,1768816735411,370.53,8.891e-05,2]
[402710018,1768816735857,741.05,9.699e-05,2]
[402710024,1768816815608,356.38,8.9e-05,2]
[402710025,1768816816011,712.76,9.709e-05,2]
[402710028,1768816895599,342.77,8.884e-05,2]
[402710029,1768816896027,685.54,9.692e-05,2]
[402710030,1768816911869,5000.0,9.798e-05,2]
[402710031,1768816912578,-395.96121924,9.947e-05,2]
[402710033,1768816934142,1790.98,9.798e-05,2]
[402710034,1768816934164,3209.02,9.798e-05,2]
[402710036,1768816956615,5000.0,9.798e-05,2]
[402710037,1768816964466,1790.99,9.798e-05,2]
[402710038,1768816964487,2822.78586942,9.798e-05,2]
[402710039,1768816970183,-272.3701998,9.947e-05,2]
[402710040,1768816974057,329.68,8.89e-05,2]
[402710041,1768816974730,659.37,9.698e-05,2]
[402710042,1768816979282,5000.0,9.798e-05,2]
[402710043,1768816985776,13608.4471706,0.00027397,120]
[402710045,1768816987595,1188.17413058,9.798e-05,2]
[402710046,1768816987618,3811.8239679,9.798e-05,2]
[402710047,1768817003028,5000.0,9.798e-05,2]
[402710048,1768817025385,1188.1860321,9.798e-05,2]
[402710049,1768817025408,3811.8139679,9.798e-05,2]
[402710051,1768817047410,5000.0,9.798e-05,2]
[402710052,1768817047991,-179.17516074,9.947e-05,2]
[402710053,1768817054762,317.1,8.886e-05,2]
[402710054,1768817054788,-452.9042016,9.947e-05,2]
[402710055,1768817055153,634.19,9.694e-05,2]
[402710056,1768817069594,236.9060321,9.798e-05,2]
[402710057,1768817069625,4763.0939679,9.798e-05,2]
[402710059,1768817092576,5000.0,9.798e-05,2]
[402710060,1768817108771,236.9160321,9.798e-05,2]
[402710061,1768817108796,4763.0839679,9.798e-05,2]
[402710062,1768817131847,5000.0,9.798e-05,2]
[402710063,1768817140264,236.9260321,8.889e-05,2]
[402710064,1768817140293,70.1239679,8.889e-05,2]
[402710065,1768817140683,614.1,9.697e-05,2]
[402710066,1768817154454,5000.0,9.798e-05,2]
[402710067,1768817176231,4315.7860321,9.798e-05,2]
[402710068,1768817176256,684.2139679,9.798e-05,2]
[402710070,1768817198209,5000.0,9.798e-05,2]
[402710071,1768817220293,295.33,8.891e-05,2]
[402710072,1768817220623,4020.4660321,9.798e-05,2]
[402710073,1768817220647,979.5339679,9.798e-05,2]
[402710074,1768817220705,590.65,9.699e-05,2]
[402710076,1768817242466,5000.0,9.798e-05,2]
[402710078,1768817264529,797.40661141,9.798e-05,2]
[402710086,1768817300863,284.05,8.922e-05,2]
[402710087,1768817301290,568.1,9.733e-05,2]
[402710088,1768817315223,1780.26942069,9.798e-05,2]
[402710089,1768817315245,3103.96767268,9.798e-05,2]
[402710091,1768817380495,273.2,8.91e-05,2]
[402710092,1768817380903,546.41,9.72e-05,2]
[402710095,1768817428889,-212.63828564,9.948e-05,2]
[402710171,1768817438468,-66.08069579,9.948e-05,2]
[402710172,1768817438479,-559.0,9.948e-05,2]
[402710173,1768817438488,-819.61,0.0001053,2]
[402710174,1768817438502,-300.0,0.00011158,2]
[402710175,1768817438511,-300.0,0.00011158,2]
[402710176,1768817438521,-300.0,0.00011158,2]
[402710177,1768817438530,-500.27464311,0.00011158,2]
[402710178,1768817438542,-699.72535689,0.00011158,2]
[402710179,1768817438551,-190.07416802,0.00011158,2]
[402710180,1768817438562,-500.0,0.00011158,2]
[402710181,1768817438572,-411.50762248,0.00011158,2]
[402710182,1768817438592,-88.49237752,0.00011158,2]
[402710183,1768817438601,-500.0,0.00011158,2]
[402710184,1768817438611,-500.0,0.00011158,2]
[402710185,1768817438621,-500.0,0.00011158,2]
[402710186,1768817438630,-66.54228358,0.00011158,2]
[402710187,1768817438642,-433.45771642,0.00011158,2]
[402710188,1768817438651,-500.0,0.00011158,2]
[402710189,1768817438660,-305.04260373,0.00011158,2]
[402710190,1768817438676,-194.95739627,0.00011158,2]
[402710191,1768817438686,-500.0,0.00011158,2]
[402710192,1768817438695,-608.17916692,0.00011158,2]
[402710193,1768817438706,-500.0,0.00011158,2]